fUSD/lending_fUSD_20250512
["ID","MTS","AMOUNT","RATE_DAILY","PERIOD"]
[360836740,1747061447083,-400.0,0.00013698,2]
[360836741,1747061447094,-400.0,0.00013698,2]
[360836742,1747061447104,-400.0,0.00013698,2]
[360836743,1747061447113,-400.0,0.00013698,2]
[360836744,1747061447122,-400.0,0.00013698,2]
[360836745,1747061447132,-400.0,0.00013698,2]
[360836746,1747061447141,-400.0,0.00013698,2]
[360836747,1747061447151,-400.0,0.00013698,2]
[360836748,1747061447160,-151.0,0.00013698,2]
[360836749,1747061447169,-151.0,0.00013698,2]
[360836750,1747061447179,-223.171313,0.00013698,2]
[360836751,1747061447188,-223.171313,0.00013698,2]
[360836752,1747061447197,-223.171313,0.00013698,2]
[360836753,1747061447206,-223.171313,0.00013698,2]
[360836754,1747061447215,-483.29,0.00013698,2]
[360836755,1747061447224,-483.29,0.00013698,2]
[360836756,1747061447233,-483.29,0.00013698,2]
[360836757,1747061447242,-223.171313,0.00013698,2]
[360836758,1747061447252,-223.171313,0.00013698,2]
[360836759,1747061447267,-400.0,0.00013698,2]
[360836760,1747061447277,-223.171313,0.00013698,2]
[360836761,1747061447286,-400.0,0.00013698,2]
[360836762,1747061447295,-483.29,0.00013698,2]
[360836763,1747061447304,-400.0,0.00013698,2]
[360836764,1747061447313,-223.171313,0.00013698,2]
[360836765,1747061447323,-400.0,0.00013698,2]
[360836766,1747061447332,-483.29,0.00013698,2]
[360836767,1747061447347,-414.50774805,0.00013698,2]
[360836768,1747061447356,-400.0,0.00013698,2]
[360836769,1747061447366,-381.53482706,0.00013698,2]
[360836770,1747061447375,-400.0,0.00013698,2]
[360836771,1747061447384,-400.0,0.00013698,2]
[360836772,1747061447394,-400.0,0.00013698,2]
[360836773,1747061447403,-151.0,0.00013698,2]
[360836774,1747061447413,-400.0,0.00013698,2]
[360836775,1747061447424,-400.0,0.00013698,2]
[360836776,1747061447435,-396.96704894,0.00013698,2]
[360836777,1747061447445,-151.0,0.00013698,2]
[360836778,1747061447454,-151.0,0.00013698,2]
[360836779,1747061447464,-151.0,0.00013698,2]
[360836780,1747061447473,-151.0,0.00013698,2]
[360836781,1747061447483,-500.0,0.00013698,2]
[360836782,1747061447495,-400.0,0.00013698,2]
[360836783,1747061447505,-364.66726539,0.00013698,2]
[360836784,1747061447515,-348.87511888,0.00013698,2]
[360836785,1747061447524,-384.14429485,0.00013698,2]
[360836786,1747061447534,-402.33,0.00013698,2]
[360836787,1747061447545,-402.33,0.00013698,2]
[360836788,1747061447556,-402.33,0.00013698,2]
[360836789,1747061447565,-402.33,0.00013698,2]
[360836790,1747061447575,-402.33,0.00013698,2]
[360836791,1747061447588,-517.78444898,0.00013698,2]
[360836792,1747061447598,-400.0,0.00013698,2]
[360836793,1747061447607,-400.0,0.00013698,2]
[360836794,1747061447616,-400.0,0.00013698,2]
[360836795,1747061447626,-400.0,0.00013698,2]
[360836796,1747061447635,-400.0,0.00013698,2]
[360836797,1747061447644,-400.0,0.00013698,2]
[360836798,1747061447654,-400.0,0.00013698,2]
[360836799,1747061447663,-400.0,0.00013698,2]
[360836800,1747061447673,-400.0,0.00013698,2]
[360836801,1747061447682,-400.0,0.00013698,2]
[360836802,1747061447691,-400.0,0.00013698,2]
[360836803,1747061447701,-400.0,0.00013698,2]
[360836804,1747061447710,-400.0,0.00013698,2]
[360836805,1747061447719,-400.0,0.00013698,2]
[360836806,1747061447728,-400.0,0.00013698,2]
[360836807,1747061447738,-400.0,0.00013698,2]
[360836808,1747061447747,-400.0,0.00013698,2]
[360836809,1747061447757,-400.0,0.00013698,2]
[360836810,1747061447766,-400.0,0.00013698,2]
[360836811,1747061447776,-205.44991439,0.00013698,2]
[360836812,1747061447785,-503.5397097,0.00013698,2]
[360836813,1747061447795,-400.0,0.00013698,2]
[360836814,1747061447805,-400.0,0.00013698,2]
[360836815,1747061447815,-400.0,0.00013698,2]
[360836816,1747061447825,-400.0,0.00013698,2]
[360836817,1747061447834,-400.0,0.00013698,2]
[360836818,1747061447847,-400.0,0.00013698,2]
[360836819,1747061447856,-400.0,0.00013698,2]
[360836820,1747061447866,-400.0,0.00013698,2]
[360836821,1747061447876,-400.0,0.00013698,2]
[360836822,1747061447885,-400.0,0.00013698,2]
[360836823,1747061447894,-216.21846008,0.00013698,2]
[360836824,1747061447904,-400.0,0.00013698,2]
[360836825,1747061447913,-332.82839456,0.00013698,2]
[360836826,1747061447923,-400.0,0.00013698,2]
[360836827,1747061447932,-400.0,0.00013698,2]
[360836828,1747061447942,-400.0,0.00013698,2]
[360836829,1747061447952,-400.0,0.00013698,2]
[360836830,1747061447961,-198.97434841,0.00013698,2]
[360836831,1747061447971,-401.80364027,0.00013698,2]
[360836832,1747061447980,-400.0,0.00013698,2]
[360836833,1747061447990,-338.42,0.00013698,2]
[360836834,1747061447999,-406.88797188,0.00013698,2]
[360836835,1747061448009,-151.0,0.00013698,2]
[360836836,1747061448211,-151.0,0.00013698,2]
[360836837,1747061448222,-168.177132,0.00013698,2]
[360836838,1747061448232,-400.0,0.00013698,2]
[360836839,1747061448241,-400.0,0.00013698,2]
[360836840,1747061448251,-400.0,0.00013698,2]
[360836841,1747061448265,-166.26452358,0.00013698,2]
[360836842,1747061448274,-400.0,0.00013698,2]
[360836843,1747061448283,-194.97332732,0.00013698,2]
[360836844,1747061448292,-485.50722864,0.00013698,2]
[360836845,1747061448302,-400.0,0.00013698,2]
[360836846,1747061448311,-400.0,0.00013698,2]
[360836847,1747061448321,-530.76212839,0.00013698,2]
[360836848,1747061448332,-306.73419114,0.00013698,2]
[360836849,1747061448346,-164.87275239,0.00013698,2]
[360836850,1747061448356,-400.0,0.00013698,2]
[360836851,1747061448366,-400.0,0.00013698,2]
[360836852,1747061448375,-400.0,0.00013698,2]
[360836853,1747061448386,-400.0,0.00013698,2]
[360836854,1747061448395,-412.43616069,0.00013698,2]
[360836855,1747061448405,-401.04287993,0.00013698,2]
[360836856,1747061448416,-400.0,0.00013698,2]
[360836857,1747061448427,-393.66477102,0.00013698,2]
[360836858,1747061448436,-400.0,0.00013698,2]
[360836859,1747061448445,-429.27547567,0.00013698,2]
[360836860,1747061448454,-400.0,0.00013698,2]
[360836861,1747061448464,-400.0,0.00013698,2]
[360836862,1747061448474,-400.0,0.00013698,2]
[360836863,1747061448484,-400.0,0.00013698,2]
[360836864,1747061448493,-400.0,0.00013698,2]
[360836865,1747061448503,-104.9081248,0.00013698,2]
[360836866,1747061448575,-295.0918752,0.00013698,2]
[360836867,1747061448585,-230.91812481,0.00013698,2]
[360836868,1747061448609,-169.08187519,0.00013698,2]
[360836869,1747061448618,-301.50757525,0.00013698,2]
[360836870,1747061448631,-98.49242475,0.00013698,2]
[360836871,1747061448641,-400.0,0.00013698,2]
[360836872,1747061448650,-441.52757525,0.00013698,2]
[360836873,1747061448670,-26.35242475,0.00013698,2]
[360836874,1747061448681,-400.0,0.00013698,2]
[360836875,1747061448692,-400.0,0.00013698,2]
[360836876,1747061448702,-400.0,0.00013698,2]
[360836877,1747061448713,-39.89757525,0.00013698,2]
[360836879,1747061618307,284.89,0.00028,120]
[360836890,1747062079234,1016.75,0.00010099,2]
[360836891,1747062116858,182.51928359,0.00010049,2]
[360836893,1747062201801,-170.43486632,0.00011937,2]
[360836894,1747062217402,-300.66550872,0.00011937,2]
[360836895,1747062232341,-155.15419171,0.00011869,2]
[360836897,1747062236220,-500.0,0.00011869,2]
[360836898,1747062236674,1184.99,0.00011833,2]
[360836899,1747062248620,-265.67098748,0.00011869,2]
[360836900,1747062256707,364.256013,0.00011809,2]
[360836901,1747062262853,-209.47922101,0.00011869,2]
[360836903,1747062266650,-42.7655998,0.00011869,2]
[360836904,1747062266674,-155.1831121,0.00011936,2]
[360836907,1747062273068,-144.8168879,0.00011936,2]
[360836908,1747062273093,-155.47844529,0.00011937,2]
[360836910,1747062279243,-162.23120689,0.00011936,2]
[360836911,1747062279268,-117.38953493,0.00011936,2]
[360836912,1747062293432,-59.52458542,0.00011936,2]
[360836913,1747062293470,-136.86624294,0.00011936,2]
[360836914,1747062304391,150.0,0.00013699,7]
[360836915,1747062307413,-297.12464052,0.00011936,2]
[360836918,1747062311474,-2.87535948,0.00011936,2]
[360836919,1747062311500,-229.85891474,0.00011936,2]
[360836920,1747062322338,-193.83418189,0.00011936,2]
[360836921,1747062330235,1400.0,0.00028,120]
[360836922,1747062337412,-350.42319691,0.00011936,2]
[360836926,1747062345075,-160.79014405,0.00011936,2]
[360836929,1747062352457,-195.8507542,0.00011936,2]
[360836930,1747062358889,-69.24280821,0.00011936,2]
[360836931,1747062358914,-106.11017445,0.00011936,2]
[360836932,1747062367396,-155.2473963,0.00011936,2]
[360836934,1747062382358,-38.64242925,0.00011936,2]
[360836935,1747062382396,-229.76240311,0.00011936,2]
[360836936,1747062397958,-155.2473963,0.00011935,2]
[360836937,1747062398073,-344.7526037,0.00011935,2]
[360836938,1747062398107,-199.23895726,0.00011935,2]
[360836939,1747062398140,-500.0,0.00011935,2]
[360836940,1747062398174,-500.0,0.00011935,2]
[360836941,1747062398197,-8456.00843904,0.00011937,2]
[360836942,1747062400246,-9955.83274063,0.00011937,2]
[360836943,1747062400268,-44.16725937,0.00012199,2]
[360836944,1747062401101,-662.48274063,0.00012199,2]
[360836945,1747062401123,-160.34,0.00012266,2]
[360836946,1747062401148,-232.36,0.00012303,2]
[360836947,1747062401173,-1016.75,0.00012363,2]
[360836948,1747062401197,-1000.0,0.0001238,2]
[360836949,1747062401219,-332.2,0.00012445,2]
[360836950,1747062401240,-586.0,0.0001245,2]
[360836951,1747062401262,-663.07,0.00012575,2]
[360836952,1747062401284,-250.0,0.00012586,2]
[360836953,1747062401310,-2693.06646897,0.00012587,2]
[360836954,1747062401332,-604.76076043,0.00012617,2]
[360836955,1747062401354,-150.0,0.00012685,2]
[360836956,1747062401376,-150.99,0.00012686,2]
[360836957,1747062401398,-299.99,0.00012686,2]
[360836958,1747062401419,-1197.99002997,0.00012686,2]
[360836959,1747062402359,-8801.99997003,0.00012686,2]
[360836960,1747062402382,-250.0,0.00012687,2]
[360836961,1747062402404,-648.89,0.00012687,2]
[360836962,1747062402426,-299.11002997,0.00012687,2]
[360836963,1747062402905,-2056.33997003,0.00012687,2]
[360836964,1747062402926,-7943.66002997,0.00012687,2]
[360836965,1747062403595,-10000.0,0.00012687,2]
[360836966,1747062404507,-10000.0,0.00012687,2]
[360836967,1747062405225,-10000.0,0.00012687,2]
[360836968,1747062406114,-10000.0,0.00012687,2]
[360836969,1747062407320,-10000.0,0.00012687,2]
[360836970,1747062407878,-10000.0,0.00012687,2]
[360836971,1747062408829,-10000.0,0.00012687,2]
[360836972,1747062409874,-10000.0,0.00012687,2]
[360836973,1747062410805,-10000.0,0.00012687,2]
[360836974,1747062412097,-10000.0,0.00012687,2]
[360836975,1747062413037,-10000.0,0.00012687,2]
[360836976,1747062414197,-10000.0,0.00012687,2]
[360836977,1747062415211,-6097.80997003,0.00012687,2]
[360836978,1747062415237,-487.38,0.00012687,2]
[360836979,1747062415259,-335.67,0.00012687,2]
[360836980,1747062415282,-3079.14002997,0.00012687,2]
[360836981,1747062420839,-1614.20997003,0.00012687,2]
[360836982,1747062420861,-1540.86,0.00012687,2]
[360836983,1747062420885,-5280.62,0.00012687,2]
[360836984,1747062420910,-1564.31002997,0.00012699,2]
[360836986,1747062462705,1400.0,0.000137,5]
[360836987,1747062464817,200.0,0.000138,5]
[360836988,1747062466949,200.0,0.000139,5]
[360836989,1747062474102,-155.2473963,0.00011935,2]
[360836990,1747062474141,-31.37109989,0.00011935,2]
[360836991,1747062487350,-158.93255729,0.00011934,2]
[360836992,1747062487971,447.771979,7.945e-05,2]
[360836993,1747062489796,-141.06744271,0.00011934,2]
[360836994,1747062489830,-468.62890011,0.00011935,2]
[360836995,1747062489863,-470.0,0.00011935,2]
[360836996,1747062489904,-500.0,0.00011935,2]
[360836997,1747062489940,-500.0,0.00011935,2]
[360836998,1747062489976,-500.0,0.00011935,2]
[360836999,1747062490012,-500.0,0.00011935,2]
[360837000,1747062490047,-186.61849619,0.00011935,2]
[360837001,1747062490070,-200.0,0.00012161,2]
[360837002,1747062490092,-150.0,0.00012191,2]
[360837003,1747062490120,-1493.5268,0.00012617,2]
[360837004,1747062490143,-1514.734081,0.00012622,2]
[360837005,1747062490166,-1128.75643891,0.00012699,2]
[360837006,1747062497488,246.39,0.00012225,2]
[360837007,1747062508473,158.93255729,0.00011935,2]
[360837010,1747062543419,151.1,0.00012214,2]
[360837011,1747062543533,151.1,0.00012218,2]
[360837012,1747062543807,151.1,0.00012223,2]
[360837013,1747062544340,151.1,0.00012228,2]
[360837014,1747062544397,151.1,0.00012232,2]
[360837015,1747062544519,151.1,0.00012237,2]
[360837016,1747062544739,151.1,0.00012242,2]
[360837017,1747062544993,151.1,0.00012246,2]
[360837018,1747062545245,151.1,0.00012251,2]
[360837019,1747062545509,151.1,0.00012256,2]
[360837020,1747062545714,151.1,0.0001226,2]
[360837021,1747062546127,151.1,0.00012265,2]
[360837022,1747062546387,28.14528379,0.0001227,2]
[360837057,1747062632355,-200.0,0.00012,2]
[360837058,1747062632365,-1385.68,0.00012169,2]
[360837059,1747062632374,-122.95471621,0.0001227,2]
[360837060,1747062632383,-151.1,0.00012275,2]
[360837061,1747062632392,-150.0,0.00012716,2]
[360837062,1747062632401,-1200.0,0.00012716,2]
[360837063,1747062632410,-300.0,0.00012716,2]
[360837064,1747062632419,-2500.0,0.00012717,2]
[360837065,1747062632429,-4601.18,0.00012717,2]
[360837066,1747062632439,-9999.99,0.00012717,2]
[360837067,1747062632449,-262.73,0.00012717,2]
[360837068,1747062632458,-1131.14,0.00012717,2]
[360837069,1747062632468,-439.64,0.00012721,2]
[360837070,1747062632654,-158.38,0.00012722,3]
[360837071,1747062632667,-370.26,0.00012737,2]
[360837072,1747062632681,-167.52,0.00012753,2]
[360837073,1747062632691,-167.52,0.00012774,2]
[360837074,1747062632701,-167.52,0.00012795,2]
[360837075,1747062632711,-2693.06646888,0.00012812,2]
[360837076,1747062632723,-167.52,0.00012817,2]
[360837077,1747062632733,-156.587,0.00012818,2]
[360837078,1747062632743,-151.0,0.00012818,2]
[360837080,1747062632754,-155.0,0.00012818,2]
[360837081,1747062632763,-668.65185757,0.00012818,2]
[360837082,1747062632773,-207.4,0.00012818,2]
[360837083,1747062632782,-6065.75,0.00012893,2]
[360837085,1747062632792,-19999.99,0.00012893,2]
[360837087,1747062632801,-6269.88,0.00012893,2]
[360837089,1747062632810,-5200.99,0.00012893,2]
[360837091,1747062632820,-586.0,0.0001292,2]
[360837093,1747062632829,-2693.06646888,0.00012924,2]
[360837095,1747062632839,-2693.06646888,0.00013036,2]
[360837097,1747062632848,-1606.62,0.00013068,2]
[360837099,1747062632858,-691.84,0.00013096,2]
[360837101,1747062632868,-2328.0,0.00013123,2]
[360837103,1747062632877,-2693.06646888,0.00013149,2]
[360837105,1747062632886,-2693.06646888,0.00013261,2]
[360837107,1747062632896,-2500.0,0.0001328,2]
[360837109,1747062632905,-200.0,0.000133,4]
[360837111,1747062632914,-1156.1,0.00013342,2]
[360837114,1747062632924,-324.97,0.00013342,2]
[360837118,1747062632933,-162.380719,0.00013366,2]
[360837120,1747062632943,-151.0,0.00013366,2]
[360837122,1747062632952,-693.3919763,0.00013366,2]
[360837124,1747062632962,-162.5,0.0001337,2]
[360837128,1747062632972,-150.0,0.0001337,2]
[360837130,1747062632982,-150.0,0.0001337,2]
[360837132,1747062632992,-150.0,0.0001337,2]
[360837135,1747062633001,-2693.06646888,0.00013373,2]
[360837137,1747062633011,-604.76076043,0.00013378,2]
[360837138,1747062633021,-586.0,0.0001338,2]
[360837140,1747062633030,-500.0,0.000134,4]
[360837141,1747062633039,-863.7023515,0.00013429,2]
[360837143,1747062633049,-1000.0,0.00013431,2]
[360837144,1747062633058,-500.0,0.00013431,2]
[360837146,1747062633068,-2693.06646888,0.00013486,2]
[360837147,1747062633078,-109142.88533683,0.00013498,2]
[360837149,1747062633090,-9926.4,0.00013498,2]
[360837151,1747062633109,-518.23066378,0.00013498,2]
[360837152,1747062633120,-1389.21643372,0.00013498,2]
[360837155,1747062633144,-1408.69720462,0.00013498,2]
[360837230,1747062638460,-500.0,0.00012168,2]
[360837231,1747062638470,-487.61873478,0.00012168,2]
[360837232,1747062638484,-587.07746105,0.00013498,2]
[360837233,1747062638494,-800.0,0.000135,4]
[360837234,1747062638504,-500.0,0.00013588,2]
[360837235,1747062638515,-500.0,0.00013588,2]
[360837236,1747062638525,-200.0,0.00013588,2]
[360837237,1747062638534,-253.57284369,0.00013591,2]
[360837238,1747062638544,-3518.00968571,0.00013591,2]
[360837239,1747062638553,-364.4245184,0.00013591,2]
[360837240,1747062638563,-3518.00968563,0.00013592,2]
[360837241,1747062638573,-3518.00968563,0.00013593,2]
[360837242,1747062638583,-3518.00968563,0.00013593,2]
[360837243,1747062638592,-3518.00968563,0.00013594,2]
[360837244,1747062638601,-3518.00968563,0.00013595,2]
[360837245,1747062638611,-3518.00968563,0.00013596,2]
[360837246,1747062638620,-3518.00968563,0.00013596,2]
[360837247,1747062638630,-3518.00968563,0.00013597,2]
[360837248,1747062638639,-377.51144219,0.00013598,2]
[360837249,1747062638648,-2693.06646888,0.00013598,2]
[360837250,1747062638658,-263.86329957,0.00013598,2]
[360837251,1747062638668,-3518.00968563,0.00013598,2]
[360837252,1747062638680,-4719.53304822,0.00013598,2]
[360837254,1747062638690,-165.35194892,0.00013598,2]
[360837255,1747062638699,-298.22104339,0.00013598,2]
[360837256,1747062638708,-36306.2157,0.00013598,2]
[360837257,1747062638719,-1100.0,0.000136,4]
[360837258,1747062638733,-19865.0,0.00013671,2]
[360837259,1747062638745,-500.0,0.00013673,2]
[360837260,1747062638755,-500.0,0.00013673,2]
[360837261,1747062638767,-500.0,0.00013673,2]
[360837262,1747062638777,-501.05441888,0.00013673,2]
[360837264,1747062638788,-490.57089523,0.00013673,2]
[360837266,1747062638798,-500.0,0.00013673,2]
[360837267,1747062638808,-500.0,0.00013673,2]
[360837268,1747062638817,-240.26633239,0.00013688,2]
[360837269,1747062638827,-963.3593,0.0001369,2]
[360837270,1747062638837,-70.637951,0.00013691,2]
[360837271,1747062638851,-6898.924,0.00013691,2]
[360837272,1747062638876,-1975.0,0.00013691,2]
[360837273,1747062638889,-1504.27587895,0.00013691,2]
[360837274,1747062638902,-4184.156181,0.00013691,2]
[360837275,1747062638914,-854.11316255,0.00013691,2]
[360837276,1747062638924,-6641.4866509,0.00013691,2]
[360837277,1747062638934,-107418.33462006,0.00013691,2]
[360837278,1747062638945,-1121.70137876,0.00013691,2]
[360837295,1747062640523,-937.53,0.00013691,2]
[360837296,1747062640547,-1568.88232493,0.00013691,2]
[360837297,1747062640595,-2492.49,0.00013691,2]
[360837299,1747062641004,-513.72927,0.00013691,2]
[360837300,1747062641023,-26494.96840615,0.00013691,2]
[360837301,1747062641033,-14546.03159386,0.00013691,2]
[360837302,1747062641060,-822.14461619,0.00013691,2]
[360837303,1747062641074,-947.72946,0.00013691,2]
[360837309,1747062645548,-337.04549921,0.00013398,2]
[360837310,1747062645598,-162.95450079,0.00013398,2]
[360837311,1747062645608,-26894.8932,0.00013398,2]
[360837312,1747062645617,-42362.23472555,0.00013691,2]
[360837313,1747062645628,-250.0,0.00013695,2]
[360837314,1747062645637,-1830.51,0.00013696,2]
[360837315,1747062645647,-1000.0,0.00013697,2]
[360837316,1747062645657,-300.0,0.00013697,2]
[360837317,1747062645666,-513.0,0.00013698,2]
[360837318,1747062645676,-313.23280841,0.00013698,2]
[360837319,1747062645688,-29114.78276526,0.00013698,2]
[360837325,1747062646226,-678.52225408,0.00013698,2]
[360837326,1747062646237,-310.8,0.00013698,2]
[360837327,1747062646380,-145003.7431183,0.00013698,2]
[360837328,1747062646531,-4631.74530095,0.00013698,2]
[360837329,1747062646542,-3075.9,0.00013698,2]
[360837330,1747062646554,-10267.99999999,0.00013698,2]
[360837331,1747062646578,-353.21,0.00013698,2]
[360837332,1747062646759,-101152.35395533,0.00013698,2]
[360837333,1747062646778,-154.535928,0.00013698,2]
[360837334,1747062646788,-151.0,0.00013698,2]
[360837335,1747062646797,-151.0,0.00013698,2]
[360837336,1747062646807,-151.0,0.00013698,2]
[360837337,1747062646816,-151.0,0.00013698,2]
[360837338,1747062646825,-151.0,0.00013698,2]
[360837339,1747062646834,-199.4372,0.00013698,2]
[360837340,1747062646844,-285.438176,0.00013698,2]
[360837341,1747062646853,-151.0,0.00013698,2]
[360837342,1747062646863,-151.0,0.00013698,2]
[360837343,1747062646872,-2.90874067,0.00013698,2]
[360837344,1747062646888,-148.09125933,0.00013698,2]
[360837345,1747062646897,-151.0,0.00013698,2]
[360837346,1747062646907,-151.0,0.00013698,2]
[360837347,1747062646916,-151.0,0.00013698,2]
[360837348,1747062646926,-151.0,0.00013698,2]
[360837349,1747062646935,-151.0,0.00013698,2]
[360837350,1747062646944,-151.0,0.00013698,2]
[360837351,1747062646954,-151.925941,0.00013698,2]
[360837352,1747062646963,-151.0,0.00013698,2]
[360837353,1747062646972,-1185.56153881,0.00013698,2]
[360837354,1747062646987,-3030.0650635,0.00013698,2]
[360837355,1747062647000,-917.99999993,0.00013698,2]
[360837365,1747063381325,150.0,0.00013699,7]
[360837366,1747063508147,1855.0,0.00028,120]
[360837465,1747063549363,164.2,9.751e-05,2]
[360837466,1747063559785,1018.92,0.00010271,2]
[360837467,1747063580721,1084.3607758,0.000209,30]
[360837468,1747063623927,-266.82178038,0.000121,2]
[360837470,1747063630792,-236.94253337,0.000121,2]
[360837471,1747063641997,251.69020233,0.000101,2]
[360837472,1747063642380,-300.0,0.000121,2]
[360837473,1747063657384,-182.89717704,0.000121,2]
[360837474,1747063673590,-150.0,0.0001206,2]
[360837475,1747063673614,-167.10282296,0.000121,2]
[360837476,1747063677183,21040.92660062,0.0001,2]
[360837477,1747063715770,-177.7386183,0.00012039,2]
[360837478,1747063719714,-64.7620637,0.00012039,2]
[360837479,1747063719751,-246.46467112,0.00012099,2]
[360837480,1747063720815,259.87508261,0.000107,2]
[360837491,1747063818197,-204.82105068,0.00012015,2]
[360837492,1747063818221,-10.21297831,0.00012027,2]
[360837493,1747063822373,-253.182332,0.00012027,2]
[360837508,1747063831429,-1788.816236,0.00012027,2]
[360837509,1747063831474,-987.12845369,0.00012027,2]
[360837510,1747063831484,-200.0,0.00012088,2]
[360837511,1747063831494,-300.0,0.00012098,2]
[360837512,1747063831504,-253.53532888,0.00012099,2]
[360837513,1747063831514,-500.0,0.00012099,2]
[360837514,1747063831523,-232.79328757,0.00012099,2]
[360837515,1747063831533,-320.30662138,0.00012099,2]
[360837516,1747063831543,-133.61712242,0.00012099,2]
[360837517,1747063831555,-35.04160931,0.00012099,2]
[360837518,1747063831564,-220.93398498,0.00012099,2]
[360837519,1747063831576,-979.06601502,0.00012099,2]
[360837520,1747063831585,-468.21636099,0.00012099,2]
[360837521,1747063831595,-1904.59460613,0.000121,2]
[360837522,1747063831605,-105.55991592,0.00012116,2]
[360837523,1747063831615,-689.41057376,0.00012116,2]
[360837524,1747063831626,-700.0,0.00012116,2]
[360837525,1747063831638,-11515.49951032,0.00012116,2]
[360837526,1747063831647,-150.0,0.00012239,2]
[360837527,1747063831658,-5324.60827597,0.0001224,2]
[360837528,1747063831669,-270.33973497,0.0001224,2]
[360837529,1747063831686,-329.93950248,0.0001224,2]
[360837530,1747063831708,-277.26554578,0.0001224,2]
[360837531,1747063831719,-1615.13339997,0.0001224,2]
[360837532,1747063831738,-450.0,0.0001224,2]
[360837591,1747063837407,-633.053,0.0001224,2]
[360837592,1747063837448,-8873.66236798,0.0001224,2]
[360837594,1747063837857,-12336.90817285,0.0001224,2]
[360837595,1747063837867,-333.72137723,0.000125,2]
[360837596,1747063837876,-1193.81,0.0001251,2]
[360837597,1747063837886,-1018.92,0.00012535,2]
[360837598,1747063837896,-1932.58,0.00012565,2]
[360837599,1747063837908,-20910.95330594,0.00012577,2]
[360837600,1747063837920,-1903.46099217,0.00012577,2]
[360837601,1747063837932,-1085.58570189,0.00012577,2]
[360837602,1747063837942,-946.04,0.00012618,2]
[360837603,1747063837951,-61.28505911,0.00012709,2]
[360837606,1747063839739,-438.71494089,0.00012709,2]
[360837607,1747063839750,-44.96523133,0.00012715,2]
[360837608,1747063839761,-955.03476867,0.00012715,2]
[360837609,1747063839771,-250.0,0.00012717,2]
[360837610,1747063839780,-854.27563133,0.00012717,2]
[360837611,1747063839891,-0.00357459,0.00012717,2]
[360837617,1747063840110,-413.06448,0.00012717,2]
[360837619,1747063840121,-3000.0,0.00012717,2]
[360837621,1747063840132,-894.96503239,0.00012717,2]
[360837622,1747063840143,-3055.85128169,0.00012717,2]
[360837624,1747063840152,-999.99,0.00012717,2]
[360837626,1747063840164,-5714.40963398,0.00012717,2]
[360837627,1747063840225,-487.52557497,0.00012717,2]
[360837628,1747063840274,-3092.4,0.00012717,2]
[360837666,1747063843644,-474.32955247,0.00012717,2]
[360837667,1747063843692,-231.32523858,0.00012717,2]
[360837668,1747063843702,-702.83946114,0.00012717,2]
[360837669,1747063843743,-14012.73053886,0.00012717,2]
[360837670,1747063843753,-162.98,0.0001272,2]
[360837671,1747063843762,-2517.86,0.00012757,2]
[360837672,1747063843772,-207.4,0.00012818,2]
[360837673,1747063843781,-162.12,0.00012893,2]
[360837674,1747063843791,-502.0,0.00012959,2]
[360837675,1747063843801,-2258.62572723,0.00013,4]
[360837676,1747063843811,-8377.55,0.000132,2]
[360837677,1747063843821,-6702.04,0.000132,2]
[360837678,1747063843830,-420.0,0.0001328,2]
[360837679,1747063843840,-1680.0,0.00013309,2]
[360837680,1747063843850,-255.0,0.00013328,2]
[360837681,1747063843860,-11814.79404385,0.00013368,2]
[360837683,1747063843870,-1000.0,0.00013398,2]